[Event "Titled Tuesday Blitz November 14 Early 2023"]
[White "Taboas Rodriguez, Daniel"]
[Black "Rakhmanov, Aleksandr"]
[WhiteFideId "2208466"]
[BlackFideId "4173708"]
[WhiteElo "2547"]
[BlackElo "2807"]
[Result "0-1"]
[Round "2"]
[TimeControl "180+1"]
[Date "2023.11.14"]
[WhiteClock "0:00:00"]
[BlackClock "0:00:15"]
[Board "70"]

1. d4 {[%clk 0:03:00]}  Nf6 {[%clk 0:02:59]} 2. Nf3 {[%clk 0:03:00]}  g6 {[%clk 0:02:59]} 3. c4 {[%clk 0:03:00]}  d6 {[%clk 0:02:59]} 4. Nc3 {[%clk 0:03:01]}  Bf5 {[%clk 0:02:59]} 5. d5 {[%clk 0:03:00]}  e5 {[%clk 0:02:57]} 6. dxe6 {[%clk 0:02:52]}  Bxe6 {[%clk 0:02:57]} 7. Nd4 {[%clk 0:02:52]}  Bg7 {[%clk 0:02:56]} 8. e4 {[%clk 0:02:49]}  O-O {[%clk 0:02:56]} 9. Nxe6 {[%clk 0:02:41]}  fxe6 {[%clk 0:02:56]} 10. Be2 {[%clk 0:02:39]}  Na6 {[%clk 0:02:49]} 11. Be3 {[%clk 0:02:32]}  b6 {[%clk 0:02:41]} 12. O-O {[%clk 0:02:31]}  Nc5 {[%clk 0:02:39]} 13. e5 {[%clk 0:02:05]}  dxe5 {[%clk 0:02:40]} 14. Bf3 {[%clk 0:02:06]}  e4 {[%clk 0:02:28]} 15. Bxc5 {[%clk 0:02:01]}  bxc5 {[%clk 0:02:29]} 16. Nxe4 {[%clk 0:02:02]}  Nxe4 {[%clk 0:02:27]} 17. Bxe4 {[%clk 0:02:02]}  Qxd1 {[%clk 0:02:18]} 18. Raxd1 {[%clk 0:02:02]}  Rad8 {[%clk 0:02:15]} 19. b3 {[%clk 0:02:01]}  Rd4 {[%clk 0:01:59]} 20. Bc2 {[%clk 0:01:35]}  Rfd8 {[%clk 0:01:48]} 21. Rxd4 {[%clk 0:01:34]}  Bxd4 {[%clk 0:01:45]} 22. Re1 {[%clk 0:01:31]}  Kf7 {[%clk 0:01:45]} 23. g3 {[%clk 0:01:27]}  h5 {[%clk 0:01:39]} 24. Kg2 {[%clk 0:01:28]}  g5 {[%clk 0:01:40]} 25. Re4 {[%clk 0:01:17]}  Bf6 {[%clk 0:01:28]} 26. Re2 {[%clk 0:01:16]}  a5 {[%clk 0:01:28]} 27. h3 {[%clk 0:01:06]}  h4 {[%clk 0:01:16]} 28. Kf3 {[%clk 0:00:57]}  Rd4 {[%clk 0:01:12]} 29. Re4 {[%clk 0:00:54]}  Rd2 {[%clk 0:01:10]} 30. Re2 {[%clk 0:00:55]}  Rd4 {[%clk 0:01:11]} 31. Re4 {[%clk 0:00:55]}  Rd6 {[%clk 0:01:11]} 32. Ke2 {[%clk 0:00:48]}  Rb6 {[%clk 0:01:02]} 33. gxh4 {[%clk 0:00:25]}  gxh4 {[%clk 0:01:01]} 34. Rg4 {[%clk 0:00:23]}  a4 {[%clk 0:00:57]} 35. Bg6+ {[%clk 0:00:21]}  Kf8 {[%clk 0:00:44]} 36. bxa4 {[%clk 0:00:16]}  Rb2+ {[%clk 0:00:40]} 37. Kf3 {[%clk 0:00:15]}  Rxa2 {[%clk 0:00:38]} 38. Bd3 {[%clk 0:00:09]}  Rxa4 {[%clk 0:00:34]} 39. Rg6 {[%clk 0:00:07]}  Ke7 {[%clk 0:00:33]} 40. Rh6 {[%clk 0:00:07]}  Ra2 {[%clk 0:00:32]} 41. Rh7+ {[%clk 0:00:05]}  Kd6 {[%clk 0:00:33]} 42. Be4 {[%clk 0:00:01]}  Bd4 {[%clk 0:00:29]} 43. Rxh4 {[%clk 0:00:01]}  Rxf2+ {[%clk 0:00:29]} 44. Kg4 {[%clk 0:00:01]}  Ke5 {[%clk 0:00:25]} 45. Bf3 {[%clk 0:00:01]}  Rc2 {[%clk 0:00:20]} 46. Rh5+ {[%clk 0:00:02]}  Kd6 {[%clk 0:00:21]} 47. h4 {[%clk 0:00:03]}  Rxc4 {[%clk 0:00:21]} 48. Rh7 {[%clk 0:00:02]}  Rc1 {[%clk 0:00:21]} 49. h5 {[%clk 0:00:03]}  Rg1+ {[%clk 0:00:22]} 50. Kf4 {[%clk 0:00:03]}  c4 {[%clk 0:00:22]} 51. h6 {[%clk 0:00:02]}  c3 {[%clk 0:00:21]} 52. Be4 {[%clk 0:00:02]}  Rf1+ {[%clk 0:00:21]} 53. Kg3 {[%clk 0:00:02]}  Re1 {[%clk 0:00:20]} 54. Kf3 {[%clk 0:00:03]}  Re3+ {[%clk 0:00:15]} 55. Kf4 {[%clk 0:00:03]}  Rxe4+ {[%clk 0:00:14]} 56. Kxe4 {[%clk 0:00:00]}  c2 {[%clk 0:00:15]} 0-1


[Site "https://www.chess.com"]

[Event "Titled Tuesday Blitz November 14 Early 2023"]
[White "Fier, Alexandr"]
[Black "Leyva Proenza, Richard"]
[WhiteFideId "2107139"]
[BlackFideId "3500985"]
[WhiteElo "2803"]
[BlackElo "2546"]
[Result "1-0"]
[Round "2"]
[TimeControl "180+1"]
[Date "2023.11.14"]
[WhiteClock "0:02:10"]
[BlackClock "0:00:18"]
[Board "71"]

1. Nf3 {[%clk 0:03:00]}  Nf6 {[%clk 0:02:59]} 2. g3 {[%clk 0:03:01]}  e6 {[%clk 0:02:59]} 3. Bg2 {[%clk 0:03:02]}  d5 {[%clk 0:02:59]} 4. O-O {[%clk 0:03:03]}  Be7 {[%clk 0:03:00]} 5. d3 {[%clk 0:03:04]}  O-O {[%clk 0:03:00]} 6. Nbd2 {[%clk 0:03:04]}  c5 {[%clk 0:03:00]} 7. e4 {[%clk 0:03:05]}  Nc6 {[%clk 0:03:01]} 8. e5 {[%clk 0:03:05]}  Nd7 {[%clk 0:03:01]} 9. Re1 {[%clk 0:03:06]}  b5 {[%clk 0:03:01]} 10. Nf1 {[%clk 0:03:05]}  b4 {[%clk 0:03:02]} 11. h4 {[%clk 0:03:06]}  a5 {[%clk 0:03:02]} 12. h5 {[%clk 0:03:06]}  a4 {[%clk 0:03:03]} 13. h6 {[%clk 0:03:06]}  g6 {[%clk 0:03:03]} 14. a3 {[%clk 0:03:06]}  bxa3 {[%clk 0:03:03]} 15. bxa3 {[%clk 0:03:06]}  Ba6 {[%clk 0:03:01]} 16. Bf4 {[%clk 0:03:06]}  Rb8 {[%clk 0:02:49]} 17. Ne3 {[%clk 0:03:05]}  Nd4 {[%clk 0:02:43]} 18. Ng4 {[%clk 0:02:53]}  Nxf3+ {[%clk 0:02:36]} 19. Bxf3 {[%clk 0:02:54]}  c4 {[%clk 0:02:16]} 20. d4 {[%clk 0:02:50]}  c3 {[%clk 0:02:16]} 21. Qc1 {[%clk 0:02:41]}  Nb6 {[%clk 0:02:07]} 22. Nf6+ {[%clk 0:02:40]}  Kh8 {[%clk 0:02:06]} 23. Bg5 {[%clk 0:02:40]}  Nc4 {[%clk 0:02:04]} 24. Be2 {[%clk 0:02:33]}  Rb2 {[%clk 0:02:02]} 25. Bd3 {[%clk 0:02:32]}  Bb5 {[%clk 0:01:56]} 26. Qf4 {[%clk 0:02:30]}  Nd2 {[%clk 0:01:41]} 27. Bxb5 {[%clk 0:02:24]}  Rxb5 {[%clk 0:01:40]} 28. Re3 {[%clk 0:02:25]}  Rb1+ {[%clk 0:01:36]} 29. Re1 {[%clk 0:02:22]}  Rxe1+ {[%clk 0:01:33]} 30. Rxe1 {[%clk 0:02:23]}  Nc4 {[%clk 0:01:30]} 31. Ra1 {[%clk 0:02:21]}  Qc7 {[%clk 0:01:12]} 32. Qh4 {[%clk 0:02:14]}  Bxf6 {[%clk 0:00:52]} 33. Bxf6+ {[%clk 0:02:13]}  Kg8 {[%clk 0:00:52]} 34. Be7 {[%clk 0:02:11]}  Qc8 {[%clk 0:00:18]} 35. Qf6 {[%clk 0:02:10]} 1-0


[Site "https://www.chess.com"]

[Event "Titled Tuesday Blitz November 14 Early 2023"]
[White "Lima, Kleyton Alcantara"]
[Black "Rosen, Eric"]
[WhiteFideId "22718397"]
[BlackFideId "2032562"]
[WhiteElo "2543"]
[BlackElo "2800"]
[Result "1-0"]
[Round "2"]
[TimeControl "180+1"]
[Date "2023.11.14"]
[WhiteClock "0:00:14"]
[BlackClock "0:00:06"]
[Board "72"]

1. e4 {[%clk 0:03:00]}  c5 {[%clk 0:02:59]} 2. Nf3 {[%clk 0:03:01]}  e6 {[%clk 0:03:00]} 3. d4 {[%clk 0:03:01]}  cxd4 {[%clk 0:03:01]} 4. Nxd4 {[%clk 0:03:02]}  Nc6 {[%clk 0:03:01]} 5. Nc3 {[%clk 0:03:02]}  Qc7 {[%clk 0:03:02]} 6. Qd3 {[%clk 0:03:02]}  Nf6 {[%clk 0:03:01]} 7. Ndb5 {[%clk 0:03:00]}  Qb8 {[%clk 0:03:01]} 8. Qg3 {[%clk 0:03:00]}  d6 {[%clk 0:02:53]} 9. Be3 {[%clk 0:02:56]}  a6 {[%clk 0:02:52]} 10. Nd4 {[%clk 0:02:52]}  h5 {[%clk 0:02:53]} 11. f4 {[%clk 0:02:10]}  Ng4 {[%clk 0:02:34]} 12. Bg1 {[%clk 0:01:58]}  e5 {[%clk 0:02:10]} 13. fxe5 {[%clk 0:01:45]}  dxe5 {[%clk 0:01:57]} 14. Nf5 {[%clk 0:01:44]}  g6 {[%clk 0:01:53]} 15. Ne3 {[%clk 0:01:43]}  Nd4 {[%clk 0:01:39]} 16. O-O-O {[%clk 0:01:36]}  Bh6 {[%clk 0:01:39]} 17. h3 {[%clk 0:01:34]}  Nf6 {[%clk 0:01:06]} 18. Kb1 {[%clk 0:01:30]}  Be6 {[%clk 0:00:57]} 19. Ned5 {[%clk 0:01:16]}  Nxd5 {[%clk 0:00:50]} 20. exd5 {[%clk 0:01:12]}  Bf5 {[%clk 0:00:47]} 21. Bxd4 {[%clk 0:01:11]}  exd4 {[%clk 0:00:48]} 22. Qxb8+ {[%clk 0:01:07]}  Rxb8 {[%clk 0:00:48]} 23. Rxd4 {[%clk 0:01:07]}  Bg7 {[%clk 0:00:26]} 24. Rd1 {[%clk 0:01:07]}  Rc8 {[%clk 0:00:26]} 25. Re1+ {[%clk 0:01:00]}  Kd7 {[%clk 0:00:26]} 26. Ne4 {[%clk 0:01:01]}  Rhe8 {[%clk 0:00:17]} 27. Bd3 {[%clk 0:01:01]}  Re5 {[%clk 0:00:08]} 28. g4 {[%clk 0:00:50]}  hxg4 {[%clk 0:00:07]} 29. hxg4 {[%clk 0:00:51]}  Bxg4 {[%clk 0:00:07]} 30. Rh7 {[%clk 0:00:52]}  Rg8 {[%clk 0:00:03]} 31. a3 {[%clk 0:00:49]}  Bf5 {[%clk 0:00:02]} 32. Nc5+ {[%clk 0:00:46]}  Kd6 {[%clk 0:00:01]} 33. Nxb7+ {[%clk 0:00:45]}  Kxd5 {[%clk 0:00:02]} 34. Rxe5+ {[%clk 0:00:40]}  Kxe5 {[%clk 0:00:03]} 35. Bxa6 {[%clk 0:00:37]}  g5 {[%clk 0:00:03]} 36. Rh1 {[%clk 0:00:37]}  g4 {[%clk 0:00:03]} 37. Nc5 {[%clk 0:00:35]}  Kf4 {[%clk 0:00:03]} 38. Nd3+ {[%clk 0:00:33]}  Bxd3 {[%clk 0:00:03]} 39. Bxd3 {[%clk 0:00:34]}  Bd4 {[%clk 0:00:03]} 40. Rf1+ {[%clk 0:00:30]}  Kg5 {[%clk 0:00:02]} 41. Rxf7 {[%clk 0:00:30]}  g3 {[%clk 0:00:02]} 42. Be4 {[%clk 0:00:27]}  Re8 {[%clk 0:00:02]} 43. Bd5 {[%clk 0:00:24]}  Re5 {[%clk 0:00:02]} 44. c4 {[%clk 0:00:19]}  Re2 {[%clk 0:00:02]} 45. b4 {[%clk 0:00:16]}  Rb2+ {[%clk 0:00:02]} 46. Kc1 {[%clk 0:00:16]}  g2 {[%clk 0:00:03]} 47. Bxg2 {[%clk 0:00:14]}  Rxg2 {[%clk 0:00:04]} 48. Rd7 {[%clk 0:00:13]}  Bb2+ {[%clk 0:00:03]} 49. Kb1 {[%clk 0:00:12]}  Bxa3 {[%clk 0:00:04]} 50. Rg7+ {[%clk 0:00:11]}  Kf5 {[%clk 0:00:02]} 51. Rxg2 {[%clk 0:00:12]}  Bxb4 {[%clk 0:00:03]} 52. Kc2 {[%clk 0:00:13]}  Ke5 {[%clk 0:00:02]} 53. Kd3 {[%clk 0:00:13]}  Kd6 {[%clk 0:00:02]} 54. Rg5 {[%clk 0:00:13]}  Be1 {[%clk 0:00:01]} 55. c5+ {[%clk 0:00:12]}  Kc6 {[%clk 0:00:02]} 56. Kc4 {[%clk 0:00:13]}  Bd2 {[%clk 0:00:02]} 57. Rg6+ {[%clk 0:00:13]}  Kc7 {[%clk 0:00:02]} 58. Kd5 {[%clk 0:00:13]}  Bf4 {[%clk 0:00:02]} 59. Rg7+ {[%clk 0:00:13]}  Kd8 {[%clk 0:00:01]} 60. Kc6 {[%clk 0:00:11]}  Bh2 {[%clk 0:00:01]} 61. Rh7 {[%clk 0:00:09]}  Bg3 {[%clk 0:00:01]} 62. Rh8+ {[%clk 0:00:09]}  Ke7 {[%clk 0:00:01]} 63. Kb7 {[%clk 0:00:09]}  Ke6 {[%clk 0:00:01]} 64. c6 {[%clk 0:00:10]}  Be5 {[%clk 0:00:01]} 65. Re8+ {[%clk 0:00:10]}  Kd6 {[%clk 0:00:01]} 66. Rxe5 {[%clk 0:00:10]}  Kxe5 {[%clk 0:00:01]} 67. c7 {[%clk 0:00:11]}  Kd6 {[%clk 0:00:01]} 68. c8=Q {[%clk 0:00:12]}  Ke7 {[%clk 0:00:02]} 69. Qc7+ {[%clk 0:00:12]}  Ke8 {[%clk 0:00:02]} 70. Kc6 {[%clk 0:00:12]}  Kf8 {[%clk 0:00:03]} 71. Kd6 {[%clk 0:00:13]}  Kg8 {[%clk 0:00:04]} 72. Ke6 {[%clk 0:00:13]}  Kh8 {[%clk 0:00:05]} 73. Kf6 {[%clk 0:00:14]}  Kg8 {[%clk 0:00:06]} 74. Qg7# {[%clk 0:00:14]} 1-0


[Site "https://www.chess.com"]

[Event "Titled Tuesday Blitz November 14 Early 2023"]
[White "Narayanan, Srinath"]
[Black "Silva Lucena, Cristian"]
[WhiteFideId "5018420"]
[BlackFideId "2232588"]
[WhiteElo "2799"]
[BlackElo "2543"]
[Result "1/2-1/2"]
[Round "2"]
[TimeControl "180+1"]
[Date "2023.11.14"]
[WhiteClock "0:00:07"]
[BlackClock "0:00:03"]
[Board "73"]

1. Nf3 {[%clk 0:02:58]}  Nf6 {[%clk 0:02:58]} 2. c4 {[%clk 0:02:57]}  g6 {[%clk 0:02:58]} 3. g3 {[%clk 0:02:56]}  Bg7 {[%clk 0:02:59]} 4. Bg2 {[%clk 0:02:57]}  O-O {[%clk 0:02:59]} 5. O-O {[%clk 0:02:57]}  d6 {[%clk 0:03:00]} 6. d4 {[%clk 0:02:57]}  Nbd7 {[%clk 0:02:58]} 7. Nc3 {[%clk 0:02:58]}  e5 {[%clk 0:02:58]} 8. e4 {[%clk 0:02:57]}  c6 {[%clk 0:02:53]} 9. h3 {[%clk 0:02:56]}  exd4 {[%clk 0:02:48]} 10. Nxd4 {[%clk 0:02:55]}  a5 {[%clk 0:02:49]} 11. Bf4 {[%clk 0:02:40]}  Ne5 {[%clk 0:02:39]} 12. b3 {[%clk 0:02:40]}  Re8 {[%clk 0:02:29]} 13. Qd2 {[%clk 0:02:36]}  Nfd7 {[%clk 0:02:20]} 14. Bh6 {[%clk 0:02:21]}  Bh8 {[%clk 0:02:04]} 15. Nde2 {[%clk 0:01:58]}  Nc5 {[%clk 0:01:57]} 16. Kh2 {[%clk 0:01:57]}  Ned3 {[%clk 0:01:05]} 17. Rad1 {[%clk 0:01:52]}  f5 {[%clk 0:01:00]} 18. Be3 {[%clk 0:01:11]}  fxe4 {[%clk 0:00:49]} 19. Nxe4 {[%clk 0:01:10]}  Nxe4 {[%clk 0:00:43]} 20. Qxd3 {[%clk 0:01:10]}  Bf5 {[%clk 0:00:38]} 21. Bxe4 {[%clk 0:00:46]}  Rxe4 {[%clk 0:00:17]} 22. Qxd6 {[%clk 0:00:46]}  Qc8 {[%clk 0:00:18]} 23. Nf4 {[%clk 0:00:27]}  Be5 {[%clk 0:00:15]} 24. Qc5 {[%clk 0:00:25]}  Bc7 {[%clk 0:00:10]} 25. Rfe1 {[%clk 0:00:13]}  Qe8 {[%clk 0:00:10]} 26. Bd2 {[%clk 0:00:12]}  Rd8 {[%clk 0:00:07]} 27. Rxe4 {[%clk 0:00:11]}  Qxe4 {[%clk 0:00:08]} 28. Re1 {[%clk 0:00:10]}  Qc2 {[%clk 0:00:06]} 29. Be3 {[%clk 0:00:09]}  Qc3 {[%clk 0:00:04]} 30. Rc1 {[%clk 0:00:08]}  Qf6 {[%clk 0:00:04]} 31. Qa7 {[%clk 0:00:07]}  g5 {[%clk 0:00:04]} 32. Ng2 {[%clk 0:00:06]}  Qh6 {[%clk 0:00:04]} 33. Qxb7 {[%clk 0:00:05]}  Qxh3+ {[%clk 0:00:03]} 34. Kg1 {[%clk 0:00:06]}  Be4 {[%clk 0:00:03]} 35. f3 {[%clk 0:00:06]}  Bxf3 {[%clk 0:00:03]} 36. Rc2 {[%clk 0:00:06]}  Qxg3 {[%clk 0:00:04]} 37. Bd4 {[%clk 0:00:01]}  Rxd4 {[%clk 0:00:03]} 38. Qc8+ {[%clk 0:00:02]}  Rd8 {[%clk 0:00:03]} 39. Qe6+ {[%clk 0:00:03]}  Kg7 {[%clk 0:00:03]} 40. Qe7+ {[%clk 0:00:03]}  Kg6 {[%clk 0:00:03]} 41. Qe6+ {[%clk 0:00:04]}  Kh5 {[%clk 0:00:04]} 42. Qf7+ {[%clk 0:00:04]}  Kg4 {[%clk 0:00:03]} 43. Qe6+ {[%clk 0:00:05]}  Kh5 {[%clk 0:00:03]} 44. Qf7+ {[%clk 0:00:05]}  Kh6 {[%clk 0:00:03]} 45. Qf6+ {[%clk 0:00:06]}  Kh5 {[%clk 0:00:03]} 46. Qf7+ {[%clk 0:00:07]} 1/2-1/2


[Site "https://www.chess.com"]

[Event "Titled Tuesday Blitz November 14 Early 2023"]
[White "Grunberg, Mihai-Lucian"]
[Black "Rychkov, Oleg"]
[WhiteFideId "1204149"]
[BlackFideId "4122852"]
[WhiteElo "2543"]
[BlackElo "2799"]
[Result "0-1"]
[Round "2"]
[TimeControl "180+1"]
[Date "2023.11.14"]
[WhiteClock "0:00:00"]
[BlackClock "0:00:20"]
[Board "74"]

1. Nf3 {[%clk 0:03:00]}  Nf6 {[%clk 0:02:59]} 2. g3 {[%clk 0:03:00]}  c5 {[%clk 0:02:58]} 3. Bg2 {[%clk 0:03:01]}  d5 {[%clk 0:02:58]} 4. O-O {[%clk 0:03:02]}  Nc6 {[%clk 0:02:59]} 5. d4 {[%clk 0:03:02]}  cxd4 {[%clk 0:02:59]} 6. Nxd4 {[%clk 0:03:02]}  e5 {[%clk 0:03:00]} 7. Nxc6 {[%clk 0:03:00]}  bxc6 {[%clk 0:03:00]} 8. c4 {[%clk 0:03:00]}  Rb8 {[%clk 0:02:56]} 9. Nc3 {[%clk 0:02:59]}  d4 {[%clk 0:02:55]} 10. Ne4 {[%clk 0:02:53]}  Bd7 {[%clk 0:02:35]} 11. e3 {[%clk 0:02:50]}  c5 {[%clk 0:02:29]} 12. exd4 {[%clk 0:02:50]}  cxd4 {[%clk 0:02:29]} 13. Re1 {[%clk 0:02:48]}  Be7 {[%clk 0:02:28]} 14. Nxf6+ {[%clk 0:02:45]}  gxf6 {[%clk 0:02:28]} 15. Qc2 {[%clk 0:02:36]}  h5 {[%clk 0:02:26]} 16. h4 {[%clk 0:02:32]}  Qc7 {[%clk 0:02:24]} 17. b3 {[%clk 0:02:25]}  Be6 {[%clk 0:02:23]} 18. Qe4 {[%clk 0:02:09]}  Kf8 {[%clk 0:02:21]} 19. f4 {[%clk 0:02:02]}  Bd6 {[%clk 0:01:50]} 20. fxe5 {[%clk 0:01:50]}  Bxe5 {[%clk 0:01:46]} 21. Bf4 {[%clk 0:01:50]}  Bxf4 {[%clk 0:01:33]} 22. Qxf4 {[%clk 0:01:50]}  Qxf4 {[%clk 0:01:33]} 23. gxf4 {[%clk 0:01:50]}  Rg8 {[%clk 0:01:33]} 24. Kf2 {[%clk 0:01:40]}  Bxc4 {[%clk 0:01:20]} 25. Bf3 {[%clk 0:01:27]}  Be6 {[%clk 0:01:20]} 26. Rad1 {[%clk 0:01:24]}  Rd8 {[%clk 0:01:19]} 27. Bxh5 {[%clk 0:01:17]}  Rh8 {[%clk 0:01:19]} 28. Bf3 {[%clk 0:01:14]}  Rxh4 {[%clk 0:01:19]} 29. Re4 {[%clk 0:01:07]}  Rh2+ {[%clk 0:01:17]} 30. Kg3 {[%clk 0:01:05]}  Rxa2 {[%clk 0:01:10]} 31. Rexd4 {[%clk 0:01:03]}  Rxd4 {[%clk 0:01:09]} 32. Rxd4 {[%clk 0:01:02]}  Bxb3 {[%clk 0:01:10]} 33. Rd8+ {[%clk 0:00:57]}  Kg7 {[%clk 0:01:09]} 34. Rd7 {[%clk 0:00:54]}  Be6 {[%clk 0:01:07]} 35. Rc7 {[%clk 0:00:52]}  a5 {[%clk 0:01:01]} 36. Bg4 {[%clk 0:00:49]}  Ra3+ {[%clk 0:00:59]} 37. Kh4 {[%clk 0:00:49]}  f5 {[%clk 0:00:52]} 38. Be2 {[%clk 0:00:43]}  Kf6 {[%clk 0:00:50]} 39. Rc6 {[%clk 0:00:36]}  Re3 {[%clk 0:00:46]} 40. Bb5 {[%clk 0:00:29]}  Rf3 {[%clk 0:00:40]} 41. Ra6 {[%clk 0:00:27]}  Rxf4+ {[%clk 0:00:39]} 42. Kh5 {[%clk 0:00:25]}  Kg7 {[%clk 0:00:27]} 43. Rxa5 {[%clk 0:00:22]}  f6 {[%clk 0:00:25]} 44. Be8 {[%clk 0:00:21]}  Bc4 {[%clk 0:00:20]} 45. Ra7+ {[%clk 0:00:21]}  Kf8 {[%clk 0:00:21]} 46. Bc6 {[%clk 0:00:18]}  Rg4 {[%clk 0:00:21]} 47. Bf3 {[%clk 0:00:14]}  Rf4 {[%clk 0:00:20]} 48. Bc6 {[%clk 0:00:13]}  Bf7+ {[%clk 0:00:20]} 49. Rxf7+ {[%clk 0:00:00]}  Kxf7 {[%clk 0:00:20]} 0-1


[Site "https://www.chess.com"]

[Event "Titled Tuesday Blitz November 14 Early 2023"]
[White "Karas, Marek"]
[Black "Sokolovsky, Yahli"]
[WhiteFideId "14928558"]
[BlackFideId "2820242"]
[WhiteElo "2523"]
[BlackElo "2772"]
[Result "1-0"]
[Round "2"]
[TimeControl "180+1"]
[Date "2023.11.14"]
[WhiteClock "0:00:02"]
[BlackClock "0:00:07"]
[Board "80"]

1. d4 {[%clk 0:03:00]}  d6 {[%clk 0:03:00]} 2. e4 {[%clk 0:03:00]}  g6 {[%clk 0:03:00]} 3. Nc3 {[%clk 0:03:00]}  Bg7 {[%clk 0:03:01]} 4. Nf3 {[%clk 0:02:59]}  a6 {[%clk 0:03:01]} 5. a4 {[%clk 0:02:56]}  b6 {[%clk 0:03:01]} 6. Be2 {[%clk 0:02:55]}  Bb7 {[%clk 0:03:02]} 7. O-O {[%clk 0:02:54]}  Nf6 {[%clk 0:03:03]} 8. e5 {[%clk 0:02:53]}  Nfd7 {[%clk 0:02:20]} 9. e6 {[%clk 0:02:40]}  fxe6 {[%clk 0:02:20]} 10. Ng5 {[%clk 0:02:40]}  Nf8 {[%clk 0:02:21]} 11. Bf3 {[%clk 0:02:31]}  Nc6 {[%clk 0:02:10]} 12. Re1 {[%clk 0:02:15]}  Qd7 {[%clk 0:01:56]} 13. d5 {[%clk 0:02:02]}  exd5 {[%clk 0:01:48]} 14. Bg4 {[%clk 0:01:42]}  Qd8 {[%clk 0:01:38]} 15. Qxd5 {[%clk 0:01:37]}  Ne5 {[%clk 0:01:24]} 16. Qxb7 {[%clk 0:01:26]}  Nxg4 {[%clk 0:01:21]} 17. Qc6+ {[%clk 0:01:24]}  Nd7 {[%clk 0:01:15]} 18. Ne6 {[%clk 0:01:22]}  Ne5 {[%clk 0:01:05]} 19. Qd5 {[%clk 0:00:55]}  Nf6 {[%clk 0:00:54]} 20. Nxg7+ {[%clk 0:00:46]}  Kd7 {[%clk 0:00:55]} 21. Qb3 {[%clk 0:00:38]}  Qg8 {[%clk 0:00:50]} 22. Qxg8 {[%clk 0:00:18]}  Rhxg8 {[%clk 0:00:45]} 23. f4 {[%clk 0:00:19]}  Nc6 {[%clk 0:00:33]} 24. Ne6 {[%clk 0:00:19]}  Nb4 {[%clk 0:00:33]} 25. Re2 {[%clk 0:00:18]}  Nxc2 {[%clk 0:00:29]} 26. Rxc2 {[%clk 0:00:19]}  Kxe6 {[%clk 0:00:30]} 27. Be3 {[%clk 0:00:18]}  c5 {[%clk 0:00:23]} 28. Re1 {[%clk 0:00:17]}  Kd7 {[%clk 0:00:23]} 29. Rd2 {[%clk 0:00:14]}  Rgf8 {[%clk 0:00:22]} 30. g3 {[%clk 0:00:13]}  Rab8 {[%clk 0:00:21]} 31. Kg2 {[%clk 0:00:12]}  Rf7 {[%clk 0:00:21]} 32. Bf2 {[%clk 0:00:11]}  Kc6 {[%clk 0:00:21]} 33. Rc1 {[%clk 0:00:10]}  Rb7 {[%clk 0:00:19]} 34. Ne2 {[%clk 0:00:11]}  Kd7 {[%clk 0:00:18]} 35. Nc3 {[%clk 0:00:10]}  Kc6 {[%clk 0:00:19]} 36. Bg1 {[%clk 0:00:10]}  Rf8 {[%clk 0:00:19]} 37. b3 {[%clk 0:00:10]}  Rfb8 {[%clk 0:00:19]} 38. Ne2 {[%clk 0:00:09]}  Kd7 {[%clk 0:00:19]} 39. Ra1 {[%clk 0:00:07]}  Ra8 {[%clk 0:00:17]} 40. Nc3 {[%clk 0:00:06]}  Kc6 {[%clk 0:00:18]} 41. Rb1 {[%clk 0:00:06]}  b5 {[%clk 0:00:15]} 42. a5 {[%clk 0:00:05]}  b4 {[%clk 0:00:15]} 43. Na4 {[%clk 0:00:05]}  Rb5 {[%clk 0:00:15]} 44. Rc2 {[%clk 0:00:04]}  Rxa5 {[%clk 0:00:14]} 45. Rbc1 {[%clk 0:00:05]}  Rb5 {[%clk 0:00:15]} 46. Bf2 {[%clk 0:00:04]}  Nd7 {[%clk 0:00:15]} 47. Kf3 {[%clk 0:00:05]}  Rf8 {[%clk 0:00:15]} 48. Be3 {[%clk 0:00:05]}  Rf7 {[%clk 0:00:15]} 49. Ke2 {[%clk 0:00:06]}  Nf6 {[%clk 0:00:15]} 50. Kd3 {[%clk 0:00:06]}  Nd5 {[%clk 0:00:16]} 51. Bd2 {[%clk 0:00:05]}  a5 {[%clk 0:00:16]} 52. Be3 {[%clk 0:00:05]}  Kd7 {[%clk 0:00:15]} 53. Kc4 {[%clk 0:00:03]}  Nc7 {[%clk 0:00:12]} 54. Rd1 {[%clk 0:00:03]}  Kc6 {[%clk 0:00:12]} 55. Kd3 {[%clk 0:00:03]}  Nd5 {[%clk 0:00:13]} 56. Bd2 {[%clk 0:00:03]}  Rf8 {[%clk 0:00:13]} 57. Ke4 {[%clk 0:00:03]}  Re8 {[%clk 0:00:13]} 58. Rdc1 {[%clk 0:00:04]}  e5 {[%clk 0:00:13]} 59. f5 {[%clk 0:00:03]}  gxf5+ {[%clk 0:00:13]} 60. Kxf5 {[%clk 0:00:04]}  e4 {[%clk 0:00:14]} 61. Re1 {[%clk 0:00:04]}  e3 {[%clk 0:00:14]} 62. Bc1 {[%clk 0:00:04]}  Rb7 {[%clk 0:00:14]} 63. Kg4 {[%clk 0:00:03]}  Rf7 {[%clk 0:00:14]} 64. Kh3 {[%clk 0:00:03]}  Rf2 {[%clk 0:00:13]} 65. Rce2 {[%clk 0:00:02]}  Rf5 {[%clk 0:00:09]} 66. Nb2 {[%clk 0:00:03]}  Nc3 {[%clk 0:00:09]} 67. Rxe3 {[%clk 0:00:02]}  Ref8 {[%clk 0:00:09]} 68. Nc4 {[%clk 0:00:02]}  R8f6 {[%clk 0:00:10]} 69. Nxa5+ {[%clk 0:00:02]}  Kb5 {[%clk 0:00:10]} 70. Nc4 {[%clk 0:00:03]}  d5 {[%clk 0:00:11]} 71. Nd2 {[%clk 0:00:03]}  d4 {[%clk 0:00:11]} 72. Rd3 {[%clk 0:00:02]}  Rf2 {[%clk 0:00:09]} 73. Nc4 {[%clk 0:00:02]}  Rh6+ {[%clk 0:00:10]} 74. Bxh6 {[%clk 0:00:02]}  Nd5 {[%clk 0:00:09]} 75. Bf4 {[%clk 0:00:02]}  Rxf4 {[%clk 0:00:09]} 76. gxf4 {[%clk 0:00:02]}  Nxf4+ {[%clk 0:00:10]} 77. Kg4 {[%clk 0:00:03]}  Nxd3 {[%clk 0:00:10]} 78. Re6 {[%clk 0:00:02]}  Nf2+ {[%clk 0:00:07]} 79. Kf3 {[%clk 0:00:02]} 1-0


[Site "https://www.chess.com"]

[Event "Titled Tuesday Blitz November 14 Early 2023"]
[White "Baches Garcia, Guillermo"]
[Black "Bryakin, Mikhail"]
[WhiteFideId "2209764"]
[BlackFideId "4165314"]
[WhiteElo "2521"]
[BlackElo "2770"]
[Result "1-0"]
[Round "2"]
[TimeControl "180+1"]
[Date "2023.11.14"]
[WhiteClock "0:00:59"]
[BlackClock "0:00:52"]
[Board "81"]

1. d4 {[%clk 0:03:00]}  Nf6 {[%clk 0:02:49]} 2. Nf3 {[%clk 0:03:01]}  b5 {[%clk 0:02:48]} 3. Bg5 {[%clk 0:03:01]}  Bb7 {[%clk 0:02:48]} 4. Nbd2 {[%clk 0:03:00]}  h6 {[%clk 0:02:46]} 5. Bh4 {[%clk 0:03:00]}  g5 {[%clk 0:02:37]} 6. Bg3 {[%clk 0:03:00]}  d6 {[%clk 0:02:37]} 7. e4 {[%clk 0:02:45]}  Nxe4 {[%clk 0:02:30]} 8. Bxb5+ {[%clk 0:02:42]}  Nd7 {[%clk 0:02:26]} 9. Nxe4 {[%clk 0:02:33]}  Bxe4 {[%clk 0:02:26]} 10. Qe2 {[%clk 0:02:33]}  Bb7 {[%clk 0:02:15]} 11. O-O {[%clk 0:02:23]}  e6 {[%clk 0:02:08]} 12. c4 {[%clk 0:02:08]}  c6 {[%clk 0:01:31]} 13. Ba4 {[%clk 0:01:50]}  Qa5 {[%clk 0:01:17]} 14. Bc2 {[%clk 0:01:34]}  g4 {[%clk 0:01:07]} 15. Nd2 {[%clk 0:01:25]}  h5 {[%clk 0:01:03]} 16. Ne4 {[%clk 0:01:20]}  d5 {[%clk 0:01:01]} 17. Nd6+ {[%clk 0:01:11]}  Bxd6 {[%clk 0:01:01]} 18. Bxd6 {[%clk 0:01:12]}  a6 {[%clk 0:01:01]} 19. c5 {[%clk 0:01:07]}  Qd8 {[%clk 0:00:57]} 20. Qxe6+ {[%clk 0:01:00]}  fxe6 {[%clk 0:00:52]} 21. Bg6# {[%clk 0:00:59]} 1-0


[Site "https://www.chess.com"]